[Event "Early-Titled-Tuesday-Blitz-January-30-2024"]
[Site "Chess.com"]
[Date "2024.01.30"]
[Round "3"]
[White "Imagine_Drag0n"]
[Black "ExchangeAB"]
[Result "1/2-1/2"]
[WhiteElo "2773"]
[BlackElo "2466"]
[TimeControl "180+1"]
[EndTime "8:32:03 PST"]
[Termination "Game drawn by repetition"]

1. e4 {[%clk 0:03:00.9]} 1... c6 {[%clk 0:02:59.9]} 2. d4 {[%clk 0:02:59.9]}
2... d5 {[%clk 0:03:00.8]} 3. f3 {[%clk 0:03:00]} 3... g6 {[%clk 0:03:00.1]} 4.
Nc3 {[%clk 0:02:59.1]} 4... Bg7 {[%clk 0:02:58.9]} 5. e5 {[%clk 0:02:58.8]} 5...
f6 {[%clk 0:02:57.8]} 6. f4 {[%clk 0:02:57.6]} 6... Nh6 {[%clk 0:02:57.3]} 7.
Nf3 {[%clk 0:02:57.4]} 7... Bg4 {[%clk 0:02:57.2]} 8. Be2 {[%clk 0:02:55.6]}
8... O-O {[%clk 0:02:56.4]} 9. O-O {[%clk 0:02:55.4]} 9... Nd7 {[%clk 0:02:54]}
10. Kh1 {[%clk 0:02:53.6]} 10... fxe5 {[%clk 0:02:52.6]} 11. fxe5 {[%clk
0:02:53.3]} 11... e6 {[%clk 0:02:50.8]} 12. Bg5 {[%clk 0:02:48.3]} 12... Qb6
{[%clk 0:02:49.2]} 13. Na4 {[%clk 0:02:29.1]} 13... Qa5 {[%clk 0:02:46.6]} 14.
b3 {[%clk 0:01:31.4]} 14... Nf5 {[%clk 0:02:44.3]} 15. Bd2 {[%clk 0:01:27.7]}
15... Qc7 {[%clk 0:02:41]} 16. c3 {[%clk 0:01:23.7]} 16... b5 {[%clk 0:02:36.8]}
17. Nb2 {[%clk 0:01:22.5]} 17... a6 {[%clk 0:02:36.5]} 18. Nd3 {[%clk
0:01:21.6]} 18... c5 {[%clk 0:02:36.7]} 19. Nf4 {[%clk 0:01:11.1]} 19... Rae8
{[%clk 0:02:33]} 20. Ng5 {[%clk 0:00:59.5]} 20... Bxe2 {[%clk 0:02:30.7]} 21.
Qxe2 {[%clk 0:01:00.4]} 21... Qc6 {[%clk 0:02:22.7]} 22. Be3 {[%clk 0:00:55.5]}
22... Bh6 {[%clk 0:02:04.9]} 23. Ngh3 {[%clk 0:00:37.9]} 23... Nxe3 {[%clk
0:01:51.3]} 24. Qxe3 {[%clk 0:00:37.5]} 24... Rf5 {[%clk 0:01:48.4]} 25. g4
{[%clk 0:00:35.6]} 25... Bxf4 {[%clk 0:01:47.4]} 26. Nxf4 {[%clk 0:00:29.7]}
26... Rf7 {[%clk 0:01:45.2]} 27. Nh3 {[%clk 0:00:29.4]} 27... Ref8 {[%clk
0:01:44.3]} 28. Rxf7 {[%clk 0:00:28.9]} 28... Rxf7 {[%clk 0:01:45.2]} 29. Ng5
{[%clk 0:00:29]} 29... Rg7 {[%clk 0:01:38.2]} 30. Rf1 {[%clk 0:00:28.3]} 30...
cxd4 {[%clk 0:01:31.7]} 31. cxd4 {[%clk 0:00:29.2]} 31... h6 {[%clk 0:01:25.6]}
32. Nh3 {[%clk 0:00:24.9]} 32... g5 {[%clk 0:01:25.7]} 33. Qd3 {[%clk
0:00:22.7]} 33... Nf8 {[%clk 0:01:19.4]} 34. Ng1 {[%clk 0:00:22.1]} 34... Rf7
{[%clk 0:01:19.4]} 35. Rxf7 {[%clk 0:00:22.1]} 35... Kxf7 {[%clk 0:01:20.3]} 36.
Ne2 {[%clk 0:00:21.8]} 36... Ng6 {[%clk 0:01:17.1]} 37. Qf3+ {[%clk 0:00:21.5]}
37... Nf4 {[%clk 0:01:10]} 38. Nxf4 {[%clk 0:00:20.8]} 38... Qc1+ {[%clk
0:01:09.9]} 39. Kg2 {[%clk 0:00:20.5]} 39... gxf4 {[%clk 0:01:08.2]} 40. g5
{[%clk 0:00:13.3]} 40... Qc2+ {[%clk 0:00:53.7]} 41. Kf1 {[%clk 0:00:13]} 41...
hxg5 {[%clk 0:00:49.5]} 42. Qh5+ {[%clk 0:00:11.8]} 42... Qg6 {[%clk 0:00:50.1]}
43. Qh8 {[%clk 0:00:11.8]} 43... Qd3+ {[%clk 0:00:45.1]} 44. Ke1 {[%clk
0:00:06.9]} 44... Qe3+ {[%clk 0:00:44.2]} 45. Kf1 {[%clk 0:00:06.8]} 45... Qc1+
{[%clk 0:00:38]} 46. Kf2 {[%clk 0:00:05.6]} 46... Qc2+ {[%clk 0:00:37.9]} 47.
Kf1 {[%clk 0:00:05.4]} 47... Qb1+ {[%clk 0:00:37.2]} 48. Kf2 {[%clk 0:00:04.8]}
48... Qxa2+ {[%clk 0:00:37.5]} 49. Kg1 {[%clk 0:00:04.7]} 49... Qb1+ {[%clk
0:00:37.2]} 50. Kf2 {[%clk 0:00:04.6]} 50... Qc2+ {[%clk 0:00:37.4]} 51. Kg1
{[%clk 0:00:05]} 51... Qc1+ {[%clk 0:00:37.5]} 52. Kf2 {[%clk 0:00:05.1]} 52...
Qd2+ {[%clk 0:00:37.7]} 53. Kg1 {[%clk 0:00:05.1]} 53... Qxd4+ {[%clk
0:00:37.9]} 54. Kf1 {[%clk 0:00:02.8]} 54... Qd3+ {[%clk 0:00:37.7]} 55. Kf2
{[%clk 0:00:02.5]} 55... Qg6 {[%clk 0:00:37.1]} 56. Qd8 {[%clk 0:00:02]} 56...
Kg7 {[%clk 0:00:36.9]} 57. Qe7+ {[%clk 0:00:01.9]} 57... Kh6 {[%clk 0:00:36.9]}
58. Qf8+ {[%clk 0:00:02.3]} 58... Kh5 {[%clk 0:00:22.6]} 59. h3 {[%clk
0:00:02.3]} 59... Qc2+ {[%clk 0:00:20.8]} 60. Kg1 {[%clk 0:00:02.7]} 60... Qd3
{[%clk 0:00:20.8]} 61. Qh8+ {[%clk 0:00:01.8]} 61... Kg6 {[%clk 0:00:19.7]} 62.
Qg8+ {[%clk 0:00:02]} 62... Kh6 {[%clk 0:00:18.9]} 63. Qh8+ {[%clk 0:00:01.6]}
63... Qh7 {[%clk 0:00:19]} 64. Qf6+ {[%clk 0:00:01.8]} 64... Qg6 {[%clk
0:00:19.4]} 65. Qh8+ {[%clk 0:00:02.1]} 65... Qh7 {[%clk 0:00:19.1]} 66. Qf6+
{[%clk 0:00:03]} 66... Kh5 {[%clk 0:00:15.9]} 67. Qxe6 {[%clk 0:00:03.5]} 67...
Qb1+ {[%clk 0:00:15.2]} 68. Kg2 {[%clk 0:00:03.7]} 68... Qc2+ {[%clk 0:00:15.7]}
69. Kg1 {[%clk 0:00:04]} 69... Qd1+ {[%clk 0:00:16.1]} 70. Kf2 {[%clk
0:00:03.7]} 70... Qd2+ {[%clk 0:00:16.3]} 71. Kf1 {[%clk 0:00:03.9]} 71... Qd3+
{[%clk 0:00:15.9]} 72. Kf2 {[%clk 0:00:04.5]} 72... Qe3+ {[%clk 0:00:15.4]} 73.
Kf1 {[%clk 0:00:04.3]} 73... Qf3+ {[%clk 0:00:14.2]} 74. Kg1 {[%clk 0:00:04.4]}
74... Qg3+ {[%clk 0:00:14.1]} 75. Kf1 {[%clk 0:00:04.6]} 75... Qd3+ {[%clk
0:00:11]} 76. Kg1 {[%clk 0:00:03.3]} 76... Qb1+ {[%clk 0:00:10.8]} 77. Kf2
{[%clk 0:00:03.5]} 77... Qb2+ {[%clk 0:00:11.3]} 78. Kf1 {[%clk 0:00:03.7]}
78... Qc1+ {[%clk 0:00:11.6]} 79. Kf2 {[%clk 0:00:04]} 79... Qc2+ {[%clk
0:00:12.2]} 80. Kf1 {[%clk 0:00:04.5]} 80... Qd1+ {[%clk 0:00:12.5]} 81. Kf2
{[%clk 0:00:05]} 81... Qd2+ {[%clk 0:00:13.1]} 82. Kf1 {[%clk 0:00:05.6]} 82...
Qd3+ {[%clk 0:00:13.6]} 1/2-1/2

[Event "Early-Titled-Tuesday-Blitz-January-30-2024"]
[Site "Chess.com"]
[Date "2024.01.30"]
[Round "3"]
[White "LastHeroJr"]
[Black "Yeritsyaan"]
[Result "0-1"]
[WhiteElo "2453"]
[BlackElo "2629"]
[TimeControl "180+1"]
[EndTime "8:32:03 PST"]
[Termination "Yeritsyaan won by resignation"]

1. e4 {[%clk 0:03:00.9]} 1... e6 {[%clk 0:02:57.6]} 2. d4 {[%clk 0:03:00]} 2...
a6 {[%clk 0:02:51.2]} 3. Bd3 {[%clk 0:02:52.7]} 3... b5 {[%clk 0:02:40.3]} 4.
Nf3 {[%clk 0:02:50.2]} 4... Bb7 {[%clk 0:02:40.1]} 5. O-O {[%clk 0:02:49.6]}
5... c5 {[%clk 0:02:40]} 6. c3 {[%clk 0:02:39.3]} 6... Nf6 {[%clk 0:02:31.3]} 7.
Nbd2 {[%clk 0:02:18.8]} 7... d5 {[%clk 0:02:21.5]} 8. e5 {[%clk 0:02:04.5]} 8...
Ne4 {[%clk 0:02:21.5]} 9. Re1 {[%clk 0:01:55.3]} 9... Nxd2 {[%clk 0:02:21.7]}
10. Bxd2 {[%clk 0:01:49.4]} 10... Be7 {[%clk 0:02:19.3]} 11. a4 {[%clk 0:01:30]}
11... c4 {[%clk 0:02:05.2]} 12. Bc2 {[%clk 0:01:29.1]} 12... Nc6 {[%clk
0:02:02.5]} 13. Qe2 {[%clk 0:01:22]} 13... b4 {[%clk 0:01:55.8]} 14. g3 {[%clk
0:01:12.2]} 14... b3 {[%clk 0:01:40.8]} 15. Bd1 {[%clk 0:01:09.2]} 15... Nb8
{[%clk 0:01:36]} 16. h4 {[%clk 0:01:06.9]} 16... Nd7 {[%clk 0:01:35.4]} 17. a5
{[%clk 0:00:59.2]} 17... Bc6 {[%clk 0:01:29]} 18. Qe3 {[%clk 0:00:54.1]} 18...
Bb5 {[%clk 0:01:26.8]} 19. Qf4 {[%clk 0:00:51.7]} 19... h6 {[%clk 0:01:26.6]}
20. Nh2 {[%clk 0:00:45.7]} 20... g5 {[%clk 0:01:18.5]} 21. hxg5 {[%clk
0:00:41.8]} 21... Bxg5 {[%clk 0:01:16.8]} 22. Qg4 {[%clk 0:00:22.5]} 22... Bxd2
{[%clk 0:01:15.8]} 23. Re2 {[%clk 0:00:22.9]} 23... Bg5 {[%clk 0:01:14]} 24. f4
{[%clk 0:00:22.9]} 24... Be7 {[%clk 0:01:12]} 25. Qg7 {[%clk 0:00:22.9]} 25...
Rf8 {[%clk 0:01:10.7]} 26. Qxh6 {[%clk 0:00:19.4]} 26... Qc7 {[%clk 0:01:10.2]}
27. f5 {[%clk 0:00:18.8]} 27... exf5 {[%clk 0:01:07.2]} 28. Nf3 {[%clk
0:00:17.8]} 28... Qc6 {[%clk 0:01:05.9]} 29. Qf4 {[%clk 0:00:14.8]} 29... Qe6
{[%clk 0:00:56.6]} 30. Rf2 {[%clk 0:00:14.7]} 30... Rg8 {[%clk 0:00:56.2]} 31.
Be2 {[%clk 0:00:14.1]} 31... Rg4 {[%clk 0:00:52.5]} 32. Qd2 {[%clk 0:00:11.1]}
32... Rxg3+ {[%clk 0:00:52.9]} 33. Rg2 {[%clk 0:00:10.6]} 33... Rxg2+ {[%clk
0:00:53.1]} 34. Kxg2 {[%clk 0:00:11.4]} 34... O-O-O {[%clk 0:00:53.1]} 35. Kf2
{[%clk 0:00:11]} 35... Rg8 {[%clk 0:00:51.7]} 36. Rh1 {[%clk 0:00:10.7]} 36...
Kb7 {[%clk 0:00:30.8]} 37. Ke1 {[%clk 0:00:10.5]} 37... Nf8 {[%clk 0:00:27.2]}
38. Rh6 {[%clk 0:00:10.3]} 38... Ng6 {[%clk 0:00:27.7]} 39. Kd1 {[%clk
0:00:08.9]} 39... Rh8 {[%clk 0:00:28.2]} 40. Rxh8 {[%clk 0:00:05.1]} 40... Nxh8
{[%clk 0:00:29.1]} 41. Qf4 {[%clk 0:00:05]} 41... Ng6 {[%clk 0:00:25.4]} 42. Qh6
{[%clk 0:00:05.1]} 42... f4 {[%clk 0:00:24.4]} 43. Qh7 {[%clk 0:00:03.1]} 43...
Qf5 {[%clk 0:00:23.5]} 44. Ke1 {[%clk 0:00:03.4]} 44... Be8 {[%clk 0:00:19.1]}
45. Qg8 {[%clk 0:00:03]} 45... Qd7 {[%clk 0:00:15.2]} 46. Qg7 {[%clk 0:00:02.3]}
46... Kc8 {[%clk 0:00:13.6]} 47. Qg8 {[%clk 0:00:02.4]} 47... Kd8 {[%clk
0:00:13.4]} 48. Qg7 {[%clk 0:00:02.4]} 48... Qf5 {[%clk 0:00:13.4]} 49. Qg8
{[%clk 0:00:02.7]} 49... Qb1+ {[%clk 0:00:13.8]} 50. Kf2 {[%clk 0:00:02]} 50...
Qxb2 {[%clk 0:00:14.4]} 51. e6 {[%clk 0:00:01.7]} 51... fxe6 {[%clk 0:00:14.6]}
52. Qxe6 {[%clk 0:00:02.6]} 52... Qxc3 {[%clk 0:00:09.1]} 53. Qb6+ {[%clk
0:00:02.7]} 53... Kd7 {[%clk 0:00:08.9]} 54. Qb7+ {[%clk 0:00:03.3]} 54... Ke6
{[%clk 0:00:09.3]} 55. Qxa6+ {[%clk 0:00:02.4]} 55... Kf7 {[%clk 0:00:10]} 56.
Qb7 {[%clk 0:00:02.4]} 56... Qe3+ {[%clk 0:00:10.3]} 57. Kf1 {[%clk 0:00:02.2]}
57... Qe4 {[%clk 0:00:05.6]} 58. a6 {[%clk 0:00:03.1]} 58... b2 {[%clk
0:00:06.1]} 59. a7 {[%clk 0:00:03.7]} 59... b1=Q+ {[%clk 0:00:05.9]} 60. Qxb1
{[%clk 0:00:03.4]} 60... Qxb1+ {[%clk 0:00:06.8]} 61. Kf2 {[%clk 0:00:03.9]}
61... Qa2 {[%clk 0:00:07.7]} 62. Ne5+ {[%clk 0:00:04.1]} 62... Nxe5 {[%clk
0:00:07.7]} 63. a8=Q {[%clk 0:00:04.7]} 63... Qa7 {[%clk 0:00:08.6]} 64. Kg2
{[%clk 0:00:05.1]} 64... Qxa8 {[%clk 0:00:08.7]} 65. Bh5+ {[%clk 0:00:02.1]}
65... Ke6 {[%clk 0:00:08.3]} 0-1

[Event "Early-Titled-Tuesday-Blitz-January-30-2024"]
[Site "Chess.com"]
[Date "2024.01.30"]
[Round "3"]
[White "AlexTruskavetsky"]
[Black "noblerone"]
[Result "1-0"]
[WhiteElo "2689"]
[BlackElo "2500"]
[TimeControl "180+1"]
[EndTime "8:32:05 PST"]
[Termination "AlexTruskavetsky won by checkmate"]

1. d4 {[%clk 0:03:00.9]} 1... d5 {[%clk 0:02:54.4]} 2. c4 {[%clk 0:02:59.6]}
2... c6 {[%clk 0:02:53.9]} 3. Nf3 {[%clk 0:02:59.1]} 3... Nf6 {[%clk 0:02:54.5]}
4. e3 {[%clk 0:02:59.2]} 4... Bg4 {[%clk 0:02:53.9]} 5. Nbd2 {[%clk 0:02:57.9]}
5... e6 {[%clk 0:02:50.2]} 6. Bd3 {[%clk 0:02:58.1]} 6... Nbd7 {[%clk
0:02:49.7]} 7. h3 {[%clk 0:02:58.2]} 7... Bh5 {[%clk 0:02:43.6]} 8. O-O {[%clk
0:02:58.4]} 8... Bg6 {[%clk 0:02:40.1]} 9. Qc2 {[%clk 0:02:56.3]} 9... Bd6
{[%clk 0:02:21.5]} 10. b3 {[%clk 0:02:56.1]} 10... O-O {[%clk 0:02:21.1]} 11.
Bb2 {[%clk 0:02:56.1]} 11... a5 {[%clk 0:02:20.8]} 12. a3 {[%clk 0:02:51.6]}
12... Rc8 {[%clk 0:02:15.7]} 13. c5 {[%clk 0:02:50.2]} 13... Bc7 {[%clk
0:02:14.3]} 14. b4 {[%clk 0:02:50.7]} 14... Qe7 {[%clk 0:01:59.7]} 15. Ne5
{[%clk 0:02:49.6]} 15... Bxd3 {[%clk 0:01:58.1]} 16. Qxd3 {[%clk 0:02:48.7]}
16... Nxe5 {[%clk 0:01:54.6]} 17. dxe5 {[%clk 0:02:49.6]} 17... Nd7 {[%clk
0:01:52.8]} 18. f4 {[%clk 0:02:50.3]} 18... f6 {[%clk 0:01:51.1]} 19. exf6
{[%clk 0:02:48.8]} 19... Nxf6 {[%clk 0:01:52]} 20. Nb3 {[%clk 0:02:32]} 20...
axb4 {[%clk 0:01:39.2]} 21. axb4 {[%clk 0:02:32]} 21... e5 {[%clk 0:01:39.8]}
22. fxe5 {[%clk 0:02:30.2]} 22... Bxe5 {[%clk 0:01:39.1]} 23. Nd4 {[%clk
0:02:30.2]} 23... Bb8 {[%clk 0:01:22.6]} 24. Nf5 {[%clk 0:02:26.6]} 24... Qe6
{[%clk 0:01:03.3]} 25. Rf3 {[%clk 0:02:26.2]} 25... Be5 {[%clk 0:00:39.5]} 26.
Bxe5 {[%clk 0:02:13.4]} 26... Qxe5 {[%clk 0:00:39.6]} 27. Raf1 {[%clk 0:02:14]}
27... Rc7 {[%clk 0:00:32.2]} 28. Qd4 {[%clk 0:02:11.5]} 28... Qxd4 {[%clk
0:00:20]} 29. exd4 {[%clk 0:02:12.4]} 29... Re8 {[%clk 0:00:18.2]} 30. Nd6
{[%clk 0:02:09]} 30... Re2 {[%clk 0:00:15.8]} 31. Ra1 {[%clk 0:02:09.1]} 31...
h6 {[%clk 0:00:15]} 32. Ra7 {[%clk 0:02:02.6]} 32... Ree7 {[%clk 0:00:14.2]} 33.
b5 {[%clk 0:01:59.9]} 33... cxb5 {[%clk 0:00:12.7]} 34. Rb3 {[%clk 0:02:00.3]}
34... Re1+ {[%clk 0:00:05]} 35. Kh2 {[%clk 0:02:00.1]} 35... Rce7 {[%clk
0:00:04.9]} 36. Rxb7 {[%clk 0:01:59.2]} 36... R7e2 {[%clk 0:00:05.2]} 37. Rb8+
{[%clk 0:01:58.5]} 37... Kh7 {[%clk 0:00:05.4]} 38. c6 {[%clk 0:01:56.6]} 38...
Rc1 {[%clk 0:00:03.2]} 39. Rc8 {[%clk 0:01:55.9]} 39... Ree1 {[%clk 0:00:03.1]}
40. c7 {[%clk 0:01:53.1]} 40... Nh5 {[%clk 0:00:03.4]} 41. Rh8+ {[%clk
0:01:45.8]} 41... Kxh8 {[%clk 0:00:03.7]} 42. c8=Q+ {[%clk 0:01:46.3]} 42...
Rxc8 {[%clk 0:00:04.5]} 43. Nxc8 {[%clk 0:01:47.2]} 43... Rd1 {[%clk 0:00:03.9]}
44. Rxb5 {[%clk 0:01:46.8]} 44... Rxd4 {[%clk 0:00:04]} 45. Ne7 {[%clk
0:01:47.5]} 45... Rd2 {[%clk 0:00:03.3]} 46. Nxd5 {[%clk 0:01:46.8]} 46... Kh7
{[%clk 0:00:03.2]} 47. Ne3 {[%clk 0:01:45]} 47... Nf6 {[%clk 0:00:03.4]} 48. Kg3
{[%clk 0:01:44.2]} 48... Rd3 {[%clk 0:00:03.6]} 49. Kf3 {[%clk 0:01:44.8]} 49...
Rd7 {[%clk 0:00:04.1]} 50. g4 {[%clk 0:01:44.7]} 50... Rf7 {[%clk 0:00:04.7]}
51. Ke2 {[%clk 0:01:43.3]} 51... Re7 {[%clk 0:00:05]} 52. Kd3 {[%clk 0:01:42.8]}
52... Rd7+ {[%clk 0:00:03.6]} 53. Kc4 {[%clk 0:01:40.6]} 53... Rc7+ {[%clk
0:00:04]} 54. Kd3 {[%clk 0:01:38.3]} 54... Rd7+ {[%clk 0:00:04.3]} 55. Ke2
{[%clk 0:01:38.9]} 55... Re7 {[%clk 0:00:04.9]} 56. Kf3 {[%clk 0:01:39.2]} 56...
Rf7 {[%clk 0:00:05.2]} 57. Kg2 {[%clk 0:01:37.7]} 57... Ra7 {[%clk 0:00:05.8]}
58. Nf5 {[%clk 0:01:37.5]} 58... Ra2+ {[%clk 0:00:05.6]} 59. Kg3 {[%clk
0:01:38.1]} 59... Ra3+ {[%clk 0:00:06.5]} 60. Kg2 {[%clk 0:01:38.5]} 60... Ra7
{[%clk 0:00:07.4]} 61. Rb2 {[%clk 0:01:37.8]} 61... Rd7 {[%clk 0:00:07.8]} 62.
Rf2 {[%clk 0:01:37.9]} 62... Ne4 {[%clk 0:00:08]} 63. Re2 {[%clk 0:01:37.9]}
63... Nf6 {[%clk 0:00:08]} 64. Ng3 {[%clk 0:01:38.1]} 64... Rc7 {[%clk
0:00:08.3]} 65. Re3 {[%clk 0:01:35.1]} 65... Rb7 {[%clk 0:00:08.7]} 66. Kf3
{[%clk 0:01:35.6]} 66... Rc7 {[%clk 0:00:09]} 67. Rd3 {[%clk 0:01:36]} 67... Rb7
{[%clk 0:00:09.3]} 68. h4 {[%clk 0:01:36.4]} 68... Ra7 {[%clk 0:00:08.8]} 69. g5
{[%clk 0:01:36.9]} 69... hxg5 {[%clk 0:00:08.6]} 70. hxg5 {[%clk 0:01:37.8]}
70... Ne8 {[%clk 0:00:08.8]} 71. Kg4 {[%clk 0:01:36.4]} 71... Ra4+ {[%clk
0:00:08]} 72. Kf3 {[%clk 0:01:36.5]} 72... Ra7 {[%clk 0:00:07.7]} 73. Rd4 {[%clk
0:01:36.5]} 73... Kg6 {[%clk 0:00:07.1]} 74. Kg4 {[%clk 0:01:37.1]} 74... Rc7
{[%clk 0:00:06.4]} 75. Ne4 {[%clk 0:01:37]} 75... Re7 {[%clk 0:00:05.4]} 76. Rc4
{[%clk 0:01:34.8]} 76... Kf7 {[%clk 0:00:04.9]} 77. Kf5 {[%clk 0:01:33]} 77...
g6+ {[%clk 0:00:04.7]} 78. Kf4 {[%clk 0:01:33.7]} 78... Ng7 {[%clk 0:00:04.9]}
79. Rc6 {[%clk 0:01:31.8]} 79... Re6 {[%clk 0:00:04.1]} 80. Rc7+ {[%clk
0:01:28.2]} 80... Re7 {[%clk 0:00:04]} 81. Rc6 {[%clk 0:01:26.9]} 81... Re6
{[%clk 0:00:03.9]} 82. Rc8 {[%clk 0:01:26.1]} 82... Re7 {[%clk 0:00:03.8]} 83.
Nd6+ {[%clk 0:01:24.2]} 83... Ke6 {[%clk 0:00:03.8]} 84. Ne4 {[%clk 0:01:24.9]}
84... Kf7 {[%clk 0:00:04.5]} 85. Rh8 {[%clk 0:01:22.7]} 85... Nh5+ {[%clk
0:00:04.5]} 86. Kf3 {[%clk 0:01:22.6]} 86... Kg7 {[%clk 0:00:04.3]} 87. Ra8
{[%clk 0:01:21.6]} 87... Rf7+ {[%clk 0:00:04.8]} 88. Ke3 {[%clk 0:01:22.2]}
88... Re7 {[%clk 0:00:05.7]} 89. Kd4 {[%clk 0:01:22.3]} 89... Rd7+ {[%clk
0:00:06.1]} 90. Ke5 {[%clk 0:01:22.9]} 90... Re7+ {[%clk 0:00:06.8]} 91. Kd5
{[%clk 0:01:23.6]} 91... Nf4+ {[%clk 0:00:05.3]} 92. Kd4 {[%clk 0:01:23.9]}
92... Ne6+ {[%clk 0:00:05.4]} 93. Kd3 {[%clk 0:01:23.4]} 93... Nf4+ {[%clk
0:00:05.8]} 94. Kd4 {[%clk 0:01:23.9]} 94... Ne6+ {[%clk 0:00:05.2]} 95. Kc3
{[%clk 0:01:23]} 95... Rc7+ {[%clk 0:00:04.5]} 96. Kb4 {[%clk 0:01:19.9]} 96...
Rb7+ {[%clk 0:00:04]} 97. Kc4 {[%clk 0:01:20.4]} 97... Rd7 {[%clk 0:00:04.2]}
98. Nf6 {[%clk 0:01:18.8]} 98... Rc7+ {[%clk 0:00:03.9]} 99. Kd5 {[%clk
0:01:18.2]} 99... Nxg5 {[%clk 0:00:04.8]} 100. Ne8+ {[%clk 0:01:18.7]} 100...
Kh6 {[%clk 0:00:03.7]} 101. Nxc7 {[%clk 0:01:19.6]} 101... Nh3 {[%clk
0:00:03.1]} 102. Ne6 {[%clk 0:01:19.4]} 102... g5 {[%clk 0:00:04]} 103. Ke4
{[%clk 0:01:19.8]} 103... Kh5 {[%clk 0:00:04.3]} 104. Kf3 {[%clk 0:01:17.7]}
104... Kh4 {[%clk 0:00:04.1]} 105. Rh8# {[%clk 0:01:17]} 1-0

[Event "Early-Titled-Tuesday-Blitz-January-30-2024"]
[Site "Chess.com"]
[Date "2024.01.30"]
[Round "3"]
[White "djano"]
[Black "Anton_Demchenko"]
[Result "0-1"]
[WhiteElo "2710"]
[BlackElo "2949"]
[TimeControl "180+1"]
[EndTime "8:32:11 PST"]
[Termination "Anton_Demchenko won by resignation"]

1. e4 {[%clk 0:03:00.9]} 1... c5 {[%clk 0:02:57.9]} 2. Nc3 {[%clk 0:03:00.1]}
2... d6 {[%clk 0:02:58.2]} 3. f4 {[%clk 0:03:00]} 3... Nc6 {[%clk 0:02:56.1]} 4.
Nf3 {[%clk 0:03:00.1]} 4... e6 {[%clk 0:02:56]} 5. Bb5 {[%clk 0:02:54]} 5... Bd7
{[%clk 0:02:56.4]} 6. O-O {[%clk 0:02:53.6]} 6... Be7 {[%clk 0:02:56.3]} 7. d4
{[%clk 0:02:42.1]} 7... cxd4 {[%clk 0:02:52.3]} 8. Nxd4 {[%clk 0:02:43]} 8...
Nf6 {[%clk 0:02:50.7]} 9. Be3 {[%clk 0:02:36.1]} 9... O-O {[%clk 0:02:49.1]} 10.
Be2 {[%clk 0:02:32.5]} 10... a6 {[%clk 0:02:46.4]} 11. Qe1 {[%clk 0:02:29.5]}
11... b5 {[%clk 0:02:43.9]} 12. a3 {[%clk 0:02:26.5]} 12... Nxd4 {[%clk
0:02:40.8]} 13. Bxd4 {[%clk 0:02:26.5]} 13... Bc6 {[%clk 0:02:41.6]} 14. Bd3
{[%clk 0:02:23.7]} 14... Nd7 {[%clk 0:02:36]} 15. Qg3 {[%clk 0:02:16.8]} 15...
e5 {[%clk 0:02:24.2]} 16. Be3 {[%clk 0:02:13]} 16... exf4 {[%clk 0:02:13.5]} 17.
Bxf4 {[%clk 0:02:13.6]} 17... Bh4 {[%clk 0:02:12.5]} 18. Qh3 {[%clk 0:02:05.1]}
18... Ne5 {[%clk 0:02:12.8]} 19. Rad1 {[%clk 0:01:53.6]} 19... Bf6 {[%clk
0:02:09.4]} 20. Kh1 {[%clk 0:01:34]} 20... Rc8 {[%clk 0:02:05.7]} 21. Be2 {[%clk
0:01:20.6]} 21... Qe7 {[%clk 0:01:32.3]} 22. Rd2 {[%clk 0:01:09.9]} 22... Rfd8
{[%clk 0:01:16.8]} 23. Rfd1 {[%clk 0:01:09.9]} 23... Bb7 {[%clk 0:01:10.8]} 24.
Qg3 {[%clk 0:00:46.7]} 24... g6 {[%clk 0:01:02]} 25. h3 {[%clk 0:00:38.3]} 25...
Rc7 {[%clk 0:00:58.7]} 26. Qf2 {[%clk 0:00:27.2]} 26... Rdd7 {[%clk 0:00:39]}
27. Rf1 {[%clk 0:00:27.1]} 27... Bg5 {[%clk 0:00:34.9]} 28. Rfd1 {[%clk
0:00:22.3]} 28... Bxf4 {[%clk 0:00:34.7]} 29. Qxf4 {[%clk 0:00:23.2]} 29... Kg7
{[%clk 0:00:33.5]} 30. Rf1 {[%clk 0:00:20]} 30... h5 {[%clk 0:00:30.4]} 31. Nd1
{[%clk 0:00:20.2]} 31... Nc4 {[%clk 0:00:26.1]} 32. Bxc4 {[%clk 0:00:19.9]}
32... Rxc4 {[%clk 0:00:27]} 33. Nf2 {[%clk 0:00:18.1]} 33... Bxe4 {[%clk
0:00:25.5]} 34. Nxe4 {[%clk 0:00:14.2]} 34... Rxe4 {[%clk 0:00:25]} 35. Qf3
{[%clk 0:00:14.8]} 35... f5 {[%clk 0:00:21.5]} 36. Rfd1 {[%clk 0:00:14.9]} 36...
Re1+ {[%clk 0:00:18.8]} 37. Kh2 {[%clk 0:00:12.1]} 37... Qe5+ {[%clk 0:00:18.2]}
38. g3 {[%clk 0:00:11.6]} 38... Re3 {[%clk 0:00:10.7]} 39. Qf2 {[%clk
0:00:10.6]} 39... h4 {[%clk 0:00:10.1]} 40. Rg1 {[%clk 0:00:08.8]} 40... Re7
{[%clk 0:00:07.3]} 41. Rd3 {[%clk 0:00:08.8]} 41... hxg3+ {[%clk 0:00:07.2]} 42.
Rxg3 {[%clk 0:00:08.9]} 42... Rxd3 {[%clk 0:00:08]} 43. cxd3 {[%clk 0:00:07.2]}
43... Qe2 {[%clk 0:00:07.2]} 44. Rg2 {[%clk 0:00:07.4]} 44... Qxd3 {[%clk
0:00:06.8]} 45. Qh4 {[%clk 0:00:05.9]} 45... Qe4 {[%clk 0:00:06.1]} 46. Qg3
{[%clk 0:00:05.1]} 46... Qe5 {[%clk 0:00:06.5]} 47. Rd2 {[%clk 0:00:05.4]} 47...
Qxg3+ {[%clk 0:00:05.4]} 48. Kxg3 {[%clk 0:00:06.3]} 48... Re6 {[%clk
0:00:04.6]} 49. Rc2 {[%clk 0:00:07]} 49... Kf6 {[%clk 0:00:03.5]} 50. Rc6 {[%clk
0:00:07.4]} 50... d5 {[%clk 0:00:04]} 51. Rc5 {[%clk 0:00:07]} 51... Re3+ {[%clk
0:00:03.9]} 52. Kg2 {[%clk 0:00:06.8]} 52... Rb3 {[%clk 0:00:03.9]} 53. Rc6+
{[%clk 0:00:06.2]} 53... Kg5 {[%clk 0:00:04.4]} 54. Rxa6 {[%clk 0:00:05.9]}
54... Rxb2+ {[%clk 0:00:04.9]} 55. Kg3 {[%clk 0:00:06.8]} 55... Rb3+ {[%clk
0:00:05.6]} 56. Kg2 {[%clk 0:00:07.2]} 56... d4 {[%clk 0:00:04.6]} 57. Rd6
{[%clk 0:00:07.5]} 57... Rxa3 {[%clk 0:00:04.7]} 58. Rxd4 {[%clk 0:00:07.4]}
58... Rb3 {[%clk 0:00:05.4]} 59. h4+ {[%clk 0:00:07.1]} 59... Kh5 {[%clk
0:00:05.9]} 60. Kh2 {[%clk 0:00:06.7]} 60... b4 {[%clk 0:00:06.2]} 61. Kg2
{[%clk 0:00:06.9]} 61... g5 {[%clk 0:00:04.3]} 62. hxg5 {[%clk 0:00:07.1]} 62...
Kxg5 {[%clk 0:00:05.2]} 63. Rc4 {[%clk 0:00:07.8]} 63... f4 {[%clk 0:00:04]} 64.
Kf2 {[%clk 0:00:07.9]} 64... Kg4 {[%clk 0:00:04.3]} 65. Rc8 {[%clk 0:00:08.4]}
65... Rb2+ {[%clk 0:00:04.9]} 66. Kf1 {[%clk 0:00:08.7]} 66... b3 {[%clk
0:00:05.7]} 67. Rc3 {[%clk 0:00:08.1]} 67... Rb1+ {[%clk 0:00:03]} 68. Kf2
{[%clk 0:00:08]} 68... b2 {[%clk 0:00:03.8]} 69. Rb3 {[%clk 0:00:07.8]} 69...
Kf5 {[%clk 0:00:02.6]} 70. Kg2 {[%clk 0:00:07.2]} 70... Ke5 {[%clk 0:00:03.2]}
71. Rb4 {[%clk 0:00:07]} 71... Kd5 {[%clk 0:00:03.1]} 72. Rb5+ {[%clk
0:00:06.5]} 72... Kc4 {[%clk 0:00:03.3]} 73. Rb8 {[%clk 0:00:07.4]} 73... f3+
{[%clk 0:00:03.3]} 74. Kh2 {[%clk 0:00:07]} 74... f2 {[%clk 0:00:03.1]} 75. Rc8+
{[%clk 0:00:07.2]} 75... Kd5 {[%clk 0:00:03.6]} 0-1